fUSD/lending_fUSD_20240517
["ID","MTS","AMOUNT","RATE_DAILY","PERIOD"]
[327244357,1715919043047,-500.0,0.00012832,2]
[327244358,1715919043056,-519.00174738,0.00012832,2]
[327244359,1715919043065,-509.00379764,0.00012832,2]
[327244360,1715919043074,-473.10426107,0.00012832,2]
[327244361,1715919043084,-514.54348675,0.00012832,2]
[327244362,1715919043093,-631.65783172,0.00012832,2]
[327244363,1715919043102,-509.7905387,0.00012832,2]
[327244364,1715919043111,-293.43425428,0.00012832,2]
[327244365,1715919043122,-522.90515646,0.00012832,2]
[327244366,1715919043131,-500.0,0.00012832,2]
[327244367,1715919043141,-511.66445006,0.00012832,2]
[327244368,1715919043150,-503.95642671,0.00012832,2]
[327244369,1715919043159,-519.67441593,0.00012832,2]
[327244370,1715919043169,-529.46484756,0.00012832,2]
[327244371,1715919043178,-442.16673603,0.00012832,2]
[327244372,1715919043187,-519.39667604,0.00012832,2]
[327244373,1715919043197,-530.29092164,0.00012832,2]
[327244374,1715919043207,-510.3281654,0.00012832,2]
[327244375,1715919043217,-507.56555204,0.00012832,2]
[327244376,1715919043227,-521.17747881,0.00012832,2]
[327244377,1715919043236,-519.25974915,0.00012832,2]
[327244378,1715919043246,-506.47297769,0.00012832,2]
[327244379,1715919043255,-631.30777442,0.00012832,2]
[327244380,1715919043265,-530.62238119,0.00012832,2]
[327244381,1715919043274,-510.4194871,0.00012832,2]
[327244382,1715919043283,-536.62822595,0.00012832,2]
[327244383,1715919043292,-511.62634348,0.00012832,2]
[327244384,1715919043301,-554.53473968,0.00012832,2]
[327244385,1715919043310,-518.18807846,0.00012832,2]
[327244386,1715919043320,-514.4615014,0.00012832,2]
[327244387,1715919043329,-520.67136614,0.00012832,2]
[327244388,1715919043340,-546.77661222,0.00012832,2]
[327244389,1715919043349,-534.24090209,0.00012832,2]
[327244390,1715919043358,-535.16341413,0.00012832,2]
[327244391,1715919043367,-613.94,0.00012832,2]
[327244392,1715919043377,-521.79676799,0.00012832,2]
[327244393,1715919043385,-558.01930645,0.00012832,2]
[327244394,1715919043395,-557.53401698,0.00012832,2]
[327244395,1715919043404,-536.65568059,0.00012832,2]
[327244396,1715919043413,-525.39362368,0.00012832,2]
[327244397,1715919043423,-424.20457189,0.00012832,2]
[327244398,1715919043431,-479.75504941,0.00012832,2]
[327244399,1715919043440,-531.39305859,0.00012832,2]
[327244400,1715919043450,-555.14070433,0.00012832,2]
[327244401,1715919043458,-501.08269933,0.00012832,2]
[327244402,1715919043468,-500.0,0.00012832,2]
[327244403,1715919043478,-536.39101275,0.00012832,2]
[327244404,1715919043487,-590.63440662,0.00012832,2]
[327244405,1715919043496,-500.0,0.00012832,2]
[327244406,1715919043506,-500.0,0.00012832,2]
[327244407,1715919043516,-500.0,0.00012832,2]
[327244408,1715919043526,-527.55454438,0.00012832,2]
[327244409,1715919043536,-520.80874628,0.00012832,2]
[327244410,1715919043546,-500.0,0.00012832,2]
[327244411,1715919043555,-513.53320304,0.00012832,2]
[327244412,1715919043565,-501.56360651,0.00012832,2]
[327244413,1715919043574,-500.0,0.00012832,2]
[327244414,1715919043588,-508.21757282,0.00012832,2]
[327244415,1715919043598,-630.67138169,0.00012832,2]
[327244416,1715919043608,-546.02773624,0.00012832,2]
[327244417,1715919043617,-519.06343709,0.00012832,2]
[327244418,1715919043629,-511.76045595,0.00012832,2]
[327244419,1715919043638,-519.82824438,0.00012832,2]
[327244420,1715919043648,-513.83184769,0.00012832,2]
[327244421,1715919043657,-511.30165551,0.00012832,2]
[327244422,1715919043669,-512.43534929,0.00012832,2]
[327244423,1715919043678,-513.06587576,0.00012832,2]
[327244424,1715919043687,-513.37773176,0.00012832,2]
[327244425,1715919043697,-314.7751,0.00012833,2]
[327244426,1715919043706,-500.0,0.00012843,2]
[327244428,1715919043715,-500.0,0.00012843,2]
[327244430,1715919043725,-240.5201738,0.00012843,2]
[327244431,1715919043734,-500.0,0.00012843,2]
[327244433,1715919043744,-500.0,0.00012843,2]
[327244435,1715919043753,-500.0,0.00012843,2]
[327244437,1715919043762,-500.0,0.00012843,2]
[327244439,1715919043771,-500.0,0.00012843,2]
[327244441,1715919043780,-500.0,0.00012843,2]
[327244443,1715919043790,-500.0,0.00012843,2]
[327244445,1715919043799,-500.0,0.00012843,2]
[327244447,1715919043809,-500.0,0.00012843,2]
[327244449,1715919043818,-332.41930233,0.00012843,2]
[327244451,1715919043827,-500.0,0.00012843,2]
[327244453,1715919043836,-500.0,0.00012843,2]
[327244455,1715919043845,-337.19456518,0.00012843,2]
[327244457,1715919043854,-500.0,0.00012843,2]
[327244459,1715919043863,-435.75876087,0.00012843,2]
[327244461,1715919043872,-500.0,0.00012843,2]
[327244463,1715919043881,-181.68253042,0.00012843,2]
[327244466,1715919043892,-500.0,0.00012843,2]
[327244467,1715919043901,-46875.27127252,0.00012844,2]
[327244470,1715919043914,-84613.80432748,0.00012844,2]
[327244472,1715919043923,-4895.0,0.00012853,2]
[327244474,1715919043932,-500.0,0.00012858,2]
[327244475,1715919043941,-300.0,0.00012861,2]
[327244476,1715919043951,-150.0,0.00012866,2]
[327244477,1715919043960,-500.0,0.00012867,2]
[327244478,1715919043970,-161.92500538,0.00012869,2]
[327244479,1715919043979,-925.0,0.0001287,2]
[327244480,1715919043988,-770.0,0.0001287,2]
[327244481,1715919043998,-1500.0,0.00012874,2]
[327244482,1715919044007,-500.0,0.00012876,2]
[327244483,1715919044017,-627.0,0.00012876,2]
[327244484,1715919044027,-399.26999599,0.00012876,2]
[327244485,1715919044036,-500.0,0.00012876,2]
[327244486,1715919044045,-348.99843552,0.00012876,2]
[327244487,1715919044054,-500.0,0.00012876,2]
[327244488,1715919044064,-500.0,0.00012876,2]
[327244489,1715919044073,-500.0,0.00012876,2]
[327244490,1715919044083,-500.0,0.00012876,2]
[327244491,1715919044092,-500.0,0.00012876,2]
[327244492,1715919044101,-500.0,0.00012876,2]
[327244493,1715919044111,-500.0,0.00012876,2]
[327244494,1715919044120,-374.67350536,0.00012876,2]
[327244495,1715919044130,-417.34850282,0.00012876,2]
[327244496,1715919044139,-500.0,0.00012876,2]
[327244497,1715919044148,-620.58272418,0.00012876,2]
[327244498,1715919044157,-500.0,0.00012876,2]
[327244499,1715919044166,-500.0,0.00012876,2]
[327244500,1715919044176,-500.0,0.00012876,2]
[327244501,1715919044186,-279.443177,0.00012876,2]
[327244502,1715919044195,-387.33022672,0.00012876,2]
[327244503,1715919044204,-1000.0,0.00012877,2]
[327244504,1715919044213,-1000.0,0.00012877,2]
[327244505,1715919044224,-1000.0,0.00012877,2]
[327244506,1715919044233,-1000.0,0.00012877,2]
[327244507,1715919044242,-1000.0,0.00012877,2]
[327244508,1715919044251,-1000.0,0.00012877,2]
[327244509,1715919044260,-158.0,0.00012877,2]
[327244510,1715919044270,-1500.0,0.00012877,2]
[327244511,1715919044279,-292.6354076,0.0001288,5]
[327244512,1715919044292,-271.73085211,0.0001288,5]
[327244513,1715919044564,-451.18374029,0.0001288,5]
[327244514,1715919044573,-79.68161476,0.00012885,2]
[327244515,1715919044610,-420.31838524,0.00012885,2]
[327244516,1715919044619,-300.0,0.00012885,2]
[327244517,1715919044629,-1085.6,0.0001289,5]
[327244518,1715919044639,-1368.99165956,0.00012892,2]
[327244519,1715919044754,-836.60016149,0.00011649,2]
[327244520,1715919044774,-12613.32983851,0.00011649,2]
[327244521,1715919044784,-4740.8727,0.00012228,2]
[327244522,1715919044793,-131.00834044,0.00012892,2]
[327244523,1715919044803,-500.0,0.00012893,2]
[327244524,1715919044814,-152.0,0.00012895,2]
[327244525,1715919044823,-2114.823,0.00012895,2]
[327244526,1715919044834,-500.0,0.00012896,2]
[327244527,1715919044844,-1211.7634,0.00012898,2]
[327244528,1715919044854,-500.0,0.00012899,2]
[327244529,1715919044864,-500.0,0.00012899,2]
[327244530,1715919044874,-523.87084458,0.00012899,2]
[327244531,1715919044884,-526.05500799,0.00012899,2]
[327244532,1715919044895,-500.0,0.00012899,2]
[327244533,1715919044906,-1000.0,0.000129,2]
[327244534,1715919044917,-10000.0,0.000129,2]
[327244535,1715919044928,-202.98768086,0.000129,2]
[327244536,1715919044937,-5578.27395762,0.000129,3]
[327244537,1715919044947,-2050.16659097,0.000129,2]
[327244538,1715919044957,-2050.16659095,0.000129,2]
[327244539,1715919044966,-2050.16659095,0.000129,2]
[327244540,1715919044977,-2050.16659095,0.000129,2]
[327244541,1715919044986,-2050.16659095,0.000129,2]
[327244542,1715919044996,-198.94117052,0.000129,2]
[327244543,1715919045005,-2050.16659095,0.000129,2]
[327244544,1715919045014,-2050.16659095,0.000129,2]
[327244545,1715919045023,-2050.16659095,0.000129,2]
[327244546,1715919045033,-326.16560858,0.000129,2]
[327244547,1715919045042,-500.0,0.00012902,2]
[327244548,1715919045051,-150.0,0.00012903,2]
[327244549,1715919045061,-500.0,0.00012911,2]
[327244550,1715919045070,-151.08712859,0.00012919,2]
[327244551,1715919045080,-500.0,0.0001292,2]
[327244552,1715919045090,-3714.854,0.00012928,2]
[327244553,1715919045100,-500.0,0.00012929,2]
[327244554,1715919045109,-201.52154248,0.00012936,2]
[327244555,1715919045118,-500.0,0.00012937,2]
[327244556,1715919045127,-500.0,0.00012946,2]
[327244557,1715919045137,-500.0,0.00012955,2]
[327244558,1715919045146,-500.0,0.00012964,2]
[327244559,1715919045155,-500.0,0.00012973,2]
[327244560,1715919045163,-500.0,0.00012981,2]
[327244561,1715919045173,-4103.73818373,0.00012986,2]
[327244562,1715919045182,-181.90947725,0.0001299,2]
[327244563,1715919045191,-376.20148476,0.0001299,2]
[327244564,1715919045200,-415.31058373,0.0001299,2]
[327244565,1715919045209,-595.60694651,0.0001299,2]
[327244566,1715919045218,-500.0,0.0001299,2]
[327244567,1715919045228,-249.79090296,0.0001299,2]
[327244568,1715919045237,-500.0,0.0001299,2]
[327244569,1715919045246,-268.16005009,0.0001299,2]
[327244570,1715919045255,-230.33419526,0.0001299,2]
[327244571,1715919045264,-500.0,0.0001299,2]
[327244572,1715919045274,-360.95371482,0.0001299,2]
[327244573,1715919045283,-161.62511753,0.0001299,2]
[327244574,1715919045292,-500.0,0.0001299,2]
[327244575,1715919045301,-247.99425841,0.0001299,2]
[327244576,1715919045310,-490.35775602,0.0001299,2]
[327244577,1715919045319,-356.72645677,0.0001299,2]
[327244578,1715919045329,-500.0,0.0001299,2]
[327244579,1715919045338,-225.76922749,0.0001299,2]
[327244580,1715919045348,-500.0,0.0001299,2]
[327244581,1715919045357,-171.27910168,0.0001299,2]
[327244582,1715919045366,-464.58305174,0.0001299,2]
[327244583,1715919045375,-500.0,0.0001299,2]
[327244584,1715919045384,-511.12944849,0.0001299,2]
[327244585,1715919045393,-511.56680878,0.0001299,2]
[327244586,1715919045402,-500.0,0.0001299,2]
[327244587,1715919045411,-510.39134569,0.0001299,2]
[327244588,1715919045421,-500.0,0.0001299,2]
[327244589,1715919045430,-263.36003748,0.0001299,2]
[327244590,1715919045439,-500.0,0.0001299,2]
[327244591,1715919045448,-361.68310301,0.0001299,2]
[327244592,1715919045457,-472.84736963,0.0001299,2]
[327244593,1715919045467,-278.34527483,0.0001299,2]
[327244594,1715919045477,-183.7052219,0.0001299,2]
[327244595,1715919045486,-500.0,0.0001299,2]
[327244596,1715919045495,-542.49228294,0.0001299,2]
[327244597,1715919045504,-174.4849825,0.0001299,2]
[327244598,1715919045719,-325.5150175,0.0001299,2]
[327244599,1715919045730,-201.52154248,0.0001299,2]
[327244600,1715919045739,-201.52154248,0.0001299,2]
[327244601,1715919045748,-500.0,0.0001299,2]
[327244602,1715919045759,-2662.0738683,0.00012991,2]
[327244603,1715919045768,-2101.1543012,0.00012991,2]
[327244604,1715919045777,-1062.64406688,0.00012991,2]
[327244606,1715919045792,-477.59066732,0.00012991,2]
[327244607,1715919045801,-979.3151672,0.00012991,2]
[327244608,1715919045810,-418.3956001,0.00012991,2]
[327244609,1715919045819,-4224.69856538,0.00012991,2]
[327244610,1715919045831,-522.85720027,0.00012991,2]
[327244612,1715919045841,-2594.5771223,0.00012991,2]
[327244613,1715919045853,-9471.89511545,0.00012991,2]
[327244614,1715919045862,-13271.1821718,0.00012991,2]
[327244615,1715919045871,-9728.3363402,0.00012991,2]
[327244616,1715919045880,-6185.4905086,0.00012991,2]
[327244617,1715919045888,-2642.644677,0.00012991,2]
[327244618,1715919045898,-1148.1929671,0.00012991,2]
[327244619,1715919045919,-906.2598225,0.00012991,2]
[327244620,1715919045942,-664.326678,0.00012991,2]
[327244621,1715919045964,-422.3935334,0.00012991,2]
[327244622,1715919045990,-180.4603889,0.00012991,2]
[327244623,1715919046018,-10417.724176,0.00012991,2]
[327244624,1715919046040,-8222.6290647,0.00012991,2]
[327244625,1715919046063,-6027.5339534,0.00012991,2]
[327244626,1715919046074,-3832.438842,0.00012991,2]
[327244627,1715919046083,-1637.3437307,0.00012991,2]
[327244628,1715919046092,-300.0,0.00012992,2]
[327244629,1715919046102,-527.66,0.00012993,2]
[327244630,1715919046112,-2083.33,0.00012993,2]
[327244631,1715919046122,-155.15405978,0.00012994,2]
[327244632,1715919046132,-2083.33,0.00012995,2]
[327244633,1715919046142,-500.0,0.00012995,2]
[327244634,1715919046151,-500.0,0.00012995,2]
[327244635,1715919046161,-500.0,0.00012995,2]
[327244636,1715919046170,-500.0,0.00012995,2]
[327244637,1715919046180,-500.0,0.00012995,2]
[327244638,1715919046189,-274.84,0.00012995,2]
[327244639,1715919046199,-500.0,0.00012995,2]
[327244640,1715919046208,-500.0,0.00012995,2]
[327244641,1715919046217,-574.39394219,0.00012995,2]
[327244642,1715919046227,-3222.9934353,0.00012996,2]
[327244643,1715919046237,-20356.873835,0.00012996,2]
[327244644,1715919046246,-1390.1261116,0.00012996,2]
[327244645,1715919046255,-607.28147726,0.00012997,2]
[327244646,1715919046265,-500.0,0.00012997,2]
[327244647,1715919046274,-500.0,0.00012997,2]
[327244648,1715919046283,-500.0,0.00012997,2]
[327244649,1715919046293,-188.78869307,0.00012997,2]
[327244650,1715919046302,-222.80866485,0.00012997,2]
[327244651,1715919046312,-500.0,0.00012997,2]
[327244652,1715919046322,-500.0,0.00012997,2]
[327244653,1715919046331,-500.0,0.00012997,2]
[327244654,1715919046341,-500.0,0.00012997,2]
[327244655,1715919046350,-1900.37766916,0.00012998,2]
[327244656,1715919046360,-451.14543325,0.00012998,2]
[327244657,1715919046369,-457.57537053,0.00012998,2]
[327244658,1715919046379,-215.67245687,0.00012998,2]
[327244659,1715919046388,-35110.80760733,0.00012998,2]
[327244660,1715919046398,-12649.23290629,0.00012998,2]
[327244661,1715919046408,-2083.33,0.00012998,2]
[327244662,1715919046417,-235.17319213,0.00012998,2]
[327244663,1715919046427,-4204.25463006,0.00012999,2]
[327244664,1715919046436,-500.0,0.00012999,2]
[327244665,1715919046446,-256.06806366,0.00012999,2]
[327244666,1715919046455,-624.17741455,0.00012999,2]
[327244667,1715919046465,-255.97124524,0.00012999,2]
[327244668,1715919046475,-384.12721825,0.00012999,2]
[327244669,1715919046484,-518.35004385,0.00012999,2]
[327244670,1715919046493,-552.90657984,0.00012999,2]
[327244671,1715919046503,-2083.33,0.00012999,2]
[327244672,1715919046512,-2083.33,0.00012999,2]
[327244673,1715919046521,-2083.33,0.00012999,2]
[327244674,1715919046531,-2083.33,0.00012999,2]
[327244675,1715919046540,-2083.33,0.00012999,2]
[327244676,1715919046550,-2083.33,0.00012999,2]
[327244677,1715919046559,-2083.33,0.00012999,2]
[327244678,1715919046569,-2083.33,0.00012999,2]
[327244679,1715919046579,-2083.33,0.00012999,2]
[327244680,1715919046596,-2083.33,0.00012999,2]
[327244681,1715919046606,-2083.33,0.00012999,2]
[327244682,1715919046617,-2083.33,0.00012999,2]
[327244683,1715919046626,-2083.33,0.00012999,2]
[327244684,1715919046639,-2083.33,0.00012999,2]
[327244685,1715919046648,-2083.33,0.00012999,2]
[327244686,1715919046658,-2083.33,0.00012999,2]
[327244687,1715919046669,-2083.33,0.00012999,2]
[327244688,1715919046680,-1756.20495993,0.00012999,2]
[327244689,1715919046721,-313.76801603,0.00012348,2]
[327244690,1715919046730,-327.12504007,0.00012999,2]
[327244691,1715919046740,-1753.93418456,0.00012999,2]
[327244692,1715919046752,-329.47581544,0.00012999,2]
[327244693,1715919046761,-154.60030363,0.00012999,2]
[327244694,1715919046771,-146.11864027,0.00012999,2]
[327244695,1715919046783,-453.88135973,0.00012999,2]
[327244696,1715919046792,-291.03064027,0.00012999,2]
[327244697,1715919046804,-101.33935973,0.00012999,2]
[327244698,1715919046861,-596.91314009,0.00012999,2]
[327244699,1715919046871,-500.0,0.00012999,2]
[327244700,1715919046881,-200.86241168,0.00012999,2]
[327244701,1715919046895,-299.13758832,0.00012999,2]
[327244702,1715919046904,-216.11241168,0.00012999,2]
[327244703,1715919046916,-283.88758832,0.00012999,2]
[327244704,1715919046927,-201.38536759,0.00012999,2]
[327244711,1715920132847,3003.08,8.279e-05,2]
[327244721,1715920234051,-155.0,9.172e-05,2]
[327244722,1715920234061,-207.3487045,9.172e-05,2]
[327244723,1715920234070,-313.76801603,9.173e-05,2]
[327244724,1715920234079,-376.69655341,9.173e-05,2]
[327244725,1715920234088,-313.76801603,9.174e-05,2]
[327244726,1715920234098,-883.15084084,9.174e-05,2]
[327244727,1715920234107,-156.07744553,9.174e-05,2]
[327244728,1715920234117,-150.0,9.175e-05,2]
[327244729,1715920234126,-883.15084084,9.177e-05,2]
[327244730,1715920234135,-4595.19400113,9.284e-05,2]
[327244731,1715920234144,-237.20973575,9.292e-05,2]
[327244732,1715920234156,-409.57332156,9.293e-05,2]
[327244733,1715920234167,-168.1167504,9.293e-05,2]
[327244734,1715920234177,-326.61045955,9.293e-05,2]
[327244735,1715920234186,-266.22124095,9.293e-05,2]
[327244736,1715920234195,-155.24858575,9.293e-05,2]
[327244737,1715920234206,-1213.86286968,9.293e-05,2]
[327244738,1715920234215,-488.66319788,9.293e-05,2]
[327244739,1715920234224,-6976.47379861,9.293e-05,2]
[327244740,1715920234233,-5272.17642688,9.293e-05,2]
[327244741,1715920234244,-3885.14245079,9.294e-05,2]
[327244742,1715920234254,-499.99,9.67e-05,2]
[327244743,1715920234263,-150.99,9.67e-05,2]
[327244744,1715920234272,-601.71,9.67e-05,2]
[327244745,1715920234281,-150.99,9.67e-05,2]
[327244746,1715920234291,-9999.99,9.67e-05,2]
[327244747,1715920234300,-210.0,0.00010092,2]
[327244748,1715920234309,-1469.17,0.00010153,2]
[327244749,1715920234318,-2546.49,0.0001017,2]
[327244750,1715920234327,-466.75,0.00010184,2]
[327244751,1715920234337,-2766.17,0.00010191,2]
[327244752,1715920234346,-242.91,0.00010257,2]
[327244753,1715920234356,-726.64,0.00010295,2]
[327244754,1715920234365,-200.0,0.00010392,2]
[327244755,1715920234375,-172.28,0.00010538,2]
[327244756,1715920234384,-3003.08,0.00010543,2]
[327244757,1715920234393,-157.43,0.00010568,2]
[327244758,1715920234403,-157.43,0.00010624,2]
[327244759,1715920234412,-250.0,0.00010678,2]
[327244760,1715920234421,-157.43,0.00010679,2]
[327244761,1715920234430,-952.16,0.00010705,15]
[327244762,1715920234440,-157.43,0.00010734,2]
[327244763,1715920234450,-150.0,0.00010777,2]
[327244764,1715920234461,-157.43,0.00010789,2]
[327244765,1715920234470,-157.43,0.00010844,2]
[327244766,1715920234480,-157.43,0.00010899,2]
[327244767,1715920234492,-157.43,0.00010954,2]
[327244768,1715920234502,-2127.63,0.00010959,2]
[327244769,1715920234513,-7283.76,0.00010959,2]
[327244770,1715920234522,-150.0,0.00010989,2]
[327244771,1715920234534,-200.0,0.00011,2]
[327244772,1715920234543,-150.0,0.00011006,2]
[327244773,1715920234552,-157.43,0.00011009,2]
[327244774,1715920234561,-157.43,0.00011064,2]
[327244775,1715920234571,-150.0,0.00011067,2]
[327244776,1715920234579,-414.22,0.00011096,2]
[327244777,1715920234589,-201.0,0.00011101,2]
[327244778,1715920234598,-150.0,0.00011102,2]
[327244779,1715920234607,-157.43,0.00011119,2]
[327244780,1715920234617,-150.0,0.0001112,2]
[327244781,1715920234626,-250.0,0.00011144,2]
[327244782,1715920234635,-676.85,0.00011149,2]
[327244783,1715920234645,-1000.0,0.00011151,2]
[327244784,1715920234655,-752.59,0.00011188,2]
[327244785,1715920234664,-150.0,0.00011188,2]
[327244786,1715920234673,-150.0,0.00011192,2]
[327244787,1715920234682,-153.19,0.000112,2]
[327244788,1715920234691,-150.0,0.00011211,2]
[327244789,1715920234700,-150.0,0.00011252,2]
[327244790,1715920234710,-150.0,0.00011325,2]
[327244791,1715920234719,-150.0,0.00011337,2]
[327244792,1715920234728,-150.0,0.00011344,2]
[327244793,1715920234737,-150.0,0.00011374,2]
[327244794,1715920234746,-150.0,0.00011381,2]
[327244795,1715920234756,-150.0,0.00011399,2]
[327244796,1715920234765,-150.0,0.00011402,2]
[327244797,1715920234774,-19706.01,0.00011423,2]
[327244798,1715920234785,-150.0,0.00011445,2]
[327244799,1715920234795,-150.0,0.00011447,2]
[327244800,1715920234805,-150.0,0.00011454,2]
[327244801,1715920234814,-150.0,0.0001146,2]
[327244802,1715920234823,-150.0,0.00011477,2]
[327244803,1715920234832,-150.0,0.00011487,2]
[327244804,1715920234841,-150.0,0.00011493,2]
[327244805,1715920234851,-1500.0,0.00011496,2]
[327244806,1715920234860,-150.0,0.00011511,2]
[327244807,1715920234870,-150.0,0.00011512,2]
[327244808,1715920234879,-151.55828801,0.00011535,2]
[327244809,1715920234888,-242.91,0.00011539,2]
[327244810,1715920234898,-153.73431256,0.00011597,2]
[327244811,1715920234907,-150.0,0.00011601,2]
[327244812,1715920234916,-150.0,0.00011616,2]
[327244813,1715920234926,-150.0,0.00011621,2]
[327244814,1715920234936,-150.0,0.00011628,2]
[327244815,1715920234945,-1500.0,0.00011632,2]
[327244816,1715920234955,-298.11,0.00011642,2]
[327244817,1715920234964,-298.11,0.00011645,2]
[327244818,1715920234974,-150.0,0.00011647,2]
[327244819,1715920234983,-298.11,0.00011648,2]
[327244820,1715920234992,-298.11,0.00011651,2]
[327244821,1715920235001,-298.11,0.00011654,2]
[327244822,1715920235011,-298.11,0.00011657,2]
[327244823,1715920235020,-150.0,0.00011658,2]
[327244824,1715920235031,-298.11,0.0001166,2]
[327244825,1715920235040,-298.11,0.00011664,2]
[327244826,1715920235049,-298.11,0.00011667,2]
[327244827,1715920235058,-150.0,0.00011669,2]
[327244828,1715920235068,-298.11,0.0001167,2]
[327244829,1715920235077,-298.11,0.00011673,2]
[327244830,1715920235085,-298.11,0.00011676,2]
[327244831,1715920235095,-298.11,0.00011679,2]
[327244832,1715920235104,-298.11,0.00011682,2]
[327244833,1715920235113,-298.11,0.00011685,2]
[327244834,1715920235122,-298.11,0.00011688,2]
[327244835,1715920235131,-298.11,0.00011691,2]
[327244836,1715920235140,-298.11,0.00011694,2]
[327244837,1715920235150,-298.11,0.00011697,2]
[327244838,1715920235164,-298.11,0.000117,2]
[327244839,1715920235173,-150.0,0.0001171,2]
[327244840,1715920235183,-150.0,0.00011753,2]
[327244841,1715920235192,-150.0,0.00011763,2]
[327244842,1715920235202,-150.0,0.00011811,2]
[327244843,1715920235212,-150.0,0.00011822,2]
[327244844,1715920235221,-150.0,0.0001183,2]
[327244845,1715920235230,-150.0,0.0001183,2]
[327244846,1715920235243,-150.0,0.00011841,2]
[327244847,1715920235252,-150.0,0.00011843,2]
[327244848,1715920235262,-150.0,0.00011849,2]
[327244849,1715920235271,-150.0,0.0001185,2]
[327244850,1715920235280,-1043.57255206,0.00011858,2]
[327244851,1715920235289,-150.0,0.00011871,2]
[327244852,1715920235298,-150.0,0.00011882,2]
[327244853,1715920235307,-150.0,0.00011896,2]
[327244854,1715920235316,-150.0,0.00011901,2]
[327244855,1715920235326,-150.0,0.00011908,2]
[327244856,1715920235335,-150.0,0.00011919,2]
[327244857,1715920235345,-150.0,0.00011925,2]
[327244858,1715920235355,-150.0,0.00011929,2]
[327244859,1715920235364,-150.0,0.00011947,2]
[327244860,1715920235374,-150.0,0.00011954,2]
[327244861,1715920235383,-150.0,0.00011973,2]
[327244862,1715920235392,-150.0,0.00011985,2]
[327244863,1715920235401,-150.0,0.00011993,2]
[327244864,1715920235410,-150.0,0.00011993,2]
[327244865,1715920235419,-1488.01809929,0.00011994,2]
[327244866,1715920235428,-150.0,0.00011996,2]
[327244867,1715920235438,-500.0,0.00012,2]
[327244868,1715920235448,-303.87,0.00012,2]
[327244869,1715920235459,-435.55,0.00012,2]
[327244870,1715920235468,-5000.0,0.00012,2]
[327244871,1715920235478,-19626.96507151,0.00012,2]
[327244872,1715920235487,-150.0,0.00012004,2]
[327244873,1715920235497,-3632.885,0.00012005,2]
[327244874,1715920235506,-150.0,0.00012062,2]
[327244875,1715920235515,-1500.0,0.00012067,2]
[327244876,1715920235525,-150.0,0.00012067,2]
[327244877,1715920235535,-3726.596,0.00012069,2]
[327244878,1715920235545,-150.0,0.00012071,2]
[327244879,1715920235555,-1500.0,0.00012092,2]
[327244880,1715920235564,-300.0,0.00012095,2]
[327244881,1715920235574,-1500.0,0.00012104,2]
[327244882,1715920235583,-150.0,0.00012115,2]
[327244883,1715920235593,-1500.0,0.00012124,2]
[327244884,1715920235602,-150.0,0.00012136,2]
[327244885,1715920235612,-150.0,0.0001216,2]
[327244886,1715920235621,-1500.0,0.00012161,2]
[327244887,1715920235631,-150.0,0.00012161,2]
[327244888,1715920235640,-150.0,0.00012164,2]
[327244889,1715920235650,-1500.0,0.00012174,2]
[327244890,1715920235660,-150.0,0.00012179,2]
[327244891,1715920235669,-1500.0,0.00012188,2]
[327244892,1715920235679,-302.24,0.00012192,2]
[327244893,1715920235688,-150.0,0.00012194,2]
[327244894,1715920235698,-1500.0,0.00012201,2]
[327244895,1715920235707,-150.0,0.00012203,2]
[327244896,1715920235717,-1500.0,0.00012211,2]
[327244897,1715920235726,-150.0,0.00012211,2]